bitfinex/quotes_ETHUSD_20241120
["timestamp","ask_amount","ask_price","bid_price","bid_amount"]
[1732122880085,3.24811,3078.8,3077.1,0.8196]
[1732122880231,3.24823,3078.6,3077.1,0.8196]
[1732122881073,3.24823,3078.6,3076.2,3.404]
[1732122881074,0.01,3074.6,3074.4,0.7944]
[1732122881284,0.01,3074.6,3073.4,4.44448176]
[1732122881285,0.01,3074.6,3074.5,0.14902362]
[1732122881482,3.25344,3073.7,3072.2,0.03253665]
[1732122881689,0.03249147,3073.7,3072.2,0.03253665]
[1732122882157,0.03249147,3073.7,3072.1,1.47674176]
[1732122882365,0.03249147,3073.7,3072.1,1.50928433]
[1732122882655,3.99500568,3074.0,3072.1,1.50928433]
[1732122882656,0.78005197,3073.6,3072.2,4.97820663]
[1732122882858,0.49970235,3072.4,3072.1,1.47674176]
[1732122883061,0.33251146,3073.5,3072.1,1.47674176]
[1732122883259,0.20300113,3073.6,3072.2,1.68242983]
[1732122883574,0.20300113,3073.6,3072.3,0.31591716]
[1732122883758,0.20300113,3073.6,3072.4,0.03254254]
[1732122884283,0.03249147,3073.5,3072.1,1.47674176]
[1732122884578,0.03249147,3073.5,3072.2,0.7673]
[1732122884758,0.20300113,3073.6,3072.3,0.7673]
[1732122885077,0.20300113,3073.6,3072.3,0.79984254]
[1732122885228,0.20300113,3073.6,3072.5,0.7673]
[1732122885768,0.20300113,3073.6,3072.7,0.7673]
[1732122886438,0.03249147,3073.5,3072.7,0.7673]
[1732122888153,0.03249147,3073.5,3072.9,0.7554]
[1732122888481,0.20300113,3073.6,3073.0,0.7554]
[1732122888778,0.03249147,3074.7,3073.3,3.0]
[1732122888982,0.03249147,3074.8,3073.5,0.7554]
[1732122889280,0.03249147,3075.1,3073.5,0.78792941]
[1732122890238,3.29422147,3075.3,3073.5,0.7554]
[1732122890434,0.04249147,3075.3,3073.5,0.7554]
[1732122890919,3.04249147,3075.3,3073.5,0.7554]
[1732122891080,3.29428147,3075.3,3073.5,0.7554]
[1732122891389,3.58124815,3075.2,3073.5,0.7554]
[1732122891542,3.28449147,3075.1,3073.3,0.7554]
[1732122891734,3.28449147,3075.1,3073.8,3.0]
[1732122891938,0.68657396,3075.0,3073.9,0.7554]
[1732122892133,0.03249147,3074.9,3073.9,0.7554]
[1732122893184,0.03249147,3075.0,3073.9,0.7554]
[1732122893387,0.35769147,3075.0,3073.9,0.7554]
[1732122893538,0.03249147,3075.0,3073.9,0.7554]
[1732122894182,0.03249147,3075.1,3073.9,0.7554]
[1732122894391,3.28446147,3075.1,3073.9,0.7554]
[1732122894557,0.65362815,3075.0,3074.0,0.7554]
[1732122894783,0.03249147,3074.9,3074.0,0.7554]
[1732122895686,0.03249147,3075.0,3074.0,0.7554]
[1732122896204,3.55105308,3074.9,3074.0,0.7554]
[1732122896396,0.33138455,3074.8,3074.0,0.7554]
[1732122896590,0.65724754,3074.7,3074.0,0.7554]
[1732122896777,0.03249147,3074.6,3074.0,0.7554]
[1732122899114,0.03249147,3075.0,3074.0,0.7554]
[1732122900094,0.03249147,3075.2,3074.0,0.7554]
[1732122900299,0.29899606,3075.1,3074.0,0.7554]
[1732122900504,0.03249147,3075.0,3074.0,0.7554]
[1732122900708,3.28456147,3075.0,3074.0,0.7554]
[1732122900894,0.67298425,3075.3,3074.4,0.832]
[1732122900895,0.4783025,3075.3,3074.4,0.832]
[1732122901111,0.03249147,3075.5,3074.4,0.832]
[1732122901342,0.36087062,3075.5,3074.4,0.832]
[1732122901500,0.03249147,3075.5,3074.4,0.832]
[1732122902128,3.25171,3075.3,3074.4,0.832]
[1732122902327,3.25196,3075.1,3074.4,0.832]
[1732122902521,0.03249147,3075.0,3074.4,0.832]
[1732122902803,3.8796813,3074.9,3074.4,0.832]
[1732122903013,0.03249147,3074.8,3074.4,0.832]
[1732122903428,0.51096784,3075.3,3074.4,0.832]
[1732122903638,3.49968883,3075.8,3072.9,6.55315057]
[1732122903639,5.01389162,3075.8,3074.5,0.03252528]
[1732122903814,0.03249147,3075.5,3074.6,0.7893]
[1732122904018,0.03249147,3075.6,3074.6,0.7893]
[1732122904218,0.03249147,3075.9,3074.7,0.7893]
[1732122904469,2.68518883,3076.4,3074.1,0.01]
[1732122904470,0.03249147,3076.2,3074.8,0.82181891]
[1732122904755,0.29913921,3075.8,3074.8,0.82181891]
[1732122904902,0.03249147,3076.3,3075.0,3.0]
[1732122905108,0.03249147,3076.6,3075.2,0.7893]
[1732122905302,0.29911368,3076.5,3075.2,0.7893]
[1732122905503,0.03249147,3076.4,3075.2,0.7893]
[1732122905736,0.03249147,3076.4,3075.3,0.7893]
[1732122905949,3.25058,3076.4,3075.3,0.7893]
[1732122906100,3.25094,3076.1,3075.3,0.7893]
[1732122906311,0.03249147,3076.0,3075.3,0.7893]
[1732122906509,0.32834315,3075.9,3075.3,0.7893]
[1732122906843,3.58257473,3075.8,3075.3,0.7893]
[1732122907031,3.2514,3075.6,3075.3,0.7893]
[1732122907348,0.55,3076.0,3075.3,0.7893]
[1732122907535,0.01,3075.1,3074.1,0.8149]
[1732122907735,3.25214,3074.9,3074.1,0.8149]
[1732122908056,2.01157465,3075.6,3074.1,0.8149]
[1732122908252,0.33134693,3075.5,3074.1,0.8149]
[1732122908438,5.52275687,3075.9,3074.2,0.80882219]
[1732122908439,0.5106602,3075.8,3074.2,0.80882219]
[1732122908610,0.29922235,3075.7,3074.2,0.7763]
[1732122908944,0.25002222,3075.9,3074.4,0.7763]
[1732122908945,0.03249147,3075.6,3074.4,0.7763]
[1732122909142,0.03249147,3075.8,3074.1,0.3232]
[1732122909345,0.03249147,3076.2,3074.8,0.7763]
[1732122909516,0.29944343,3076.1,3074.8,0.7763]
[1732122909727,3.25108,3075.9,3074.8,0.7763]
[1732122909923,0.3319349,3075.8,3074.8,0.7763]
[1732122910112,0.29944343,3075.7,3074.8,0.7763]
[1732122910448,0.29944343,3075.6,3074.8,0.7763]
[1732122910619,0.3319349,3075.5,3074.8,0.7763]
[1732122910822,0.65778392,3075.4,3074.8,0.7763]
[1732122911152,0.03249147,3075.3,3074.8,0.7763]
[1732122911349,0.30041074,3075.3,3074.8,0.7763]
[1732122911550,0.30041074,3075.2,3074.8,0.7763]
[1732122911766,0.51314866,3076.0,3074.8,0.7763]
[1732122912052,0.30065265,3075.9,3074.8,0.7763]
[1732122912221,0.30065265,3075.8,3075.0,3.0]
[1732122912422,0.98251608,3076.4,3075.2,0.7934]
[1732122912759,0.30078563,3076.3,3075.2,0.7934]
[1732122913048,0.48065719,3076.6,3075.2,0.7934]
[1732122913049,0.30078563,3076.2,3075.2,0.7934]
[1732122913256,0.03249147,3076.6,3075.2,0.7934]
[1732122913747,0.30065441,3076.5,3075.2,0.7934]
[1732122913958,0.30065441,3076.4,3075.2,0.7934]
[1732122914115,0.48065719,3076.8,3075.2,0.7934]
[1732122914116,0.03249147,3076.7,3075.2,0.7934]
[1732122914312,0.30050253,3076.3,3075.2,0.7934]
[1732122914621,0.30050253,3076.2,3075.2,0.7934]
[1732122914842,4.09279868,3076.7,3075.4,0.7585]
[1732122915042,3.55076271,3076.6,3075.4,0.7585]
[1732122915244,0.33291418,3076.5,3075.4,0.7585]
[1732122915579,4.03184677,3076.4,3075.4,0.7585]
[1732122915756,3.25082,3076.2,3075.4,0.7585]
[1732122915959,0.33291418,3076.1,3075.4,0.7585]
[1732122916138,0.30042271,3076.0,3075.4,0.7585]
[1732122916324,0.33291418,3075.9,3075.4,0.7585]
[1732122916524,0.30042271,3075.8,3075.4,0.7585]
[1732122916767,0.01,3076.3,3075.4,0.7585]
[1732122916768,0.33291418,3075.7,3075.4,0.7585]
[1732122916929,0.30042271,3075.6,3075.4,0.7585]
[1732122917123,0.03249147,3076.1,3075.4,0.7585]
[1732122917326,3.28346147,3076.1,3075.4,0.7585]
[1732122917542,0.78157912,3076.0,3075.4,0.7585]
[1732122917771,0.81407059,3075.9,3075.4,0.7585]
[1732122918099,3.55185735,3075.8,3075.4,0.7585]
[1732122918229,3.25142,3075.6,3075.4,0.7585]
[1732122918431,0.81407059,3075.5,3074.2,0.7717]
[1732122918670,0.78157912,3075.4,3074.4,0.7614]
[1732122918872,0.30060735,3075.3,3074.7,0.7614]
[1732122919044,0.51346324,3075.8,3074.7,0.7614]
[1732122919375,0.7818848,3075.7,3074.7,0.7614]
[1732122919560,0.7818848,3075.6,3074.7,0.92504]
[1732122919768,0.3334045,3075.5,3074.7,0.92504]
[1732122919959,0.30091303,3075.4,3074.7,0.92504]
[1732122920166,0.48097177,3075.9,3074.8,3.0]
[1732122920490,0.03249147,3075.8,3074.9,0.761]
[1732122920782,0.48153693,3075.7,3074.9,0.761]
[1732122920983,0.03249147,3075.6,3074.9,0.761]
[1732122921429,0.3009482,3075.5,3074.9,0.761]
[1732122921636,3.25097,3076.0,3074.9,0.761]
[1732122921637,0.33343967,3075.4,3074.9,0.761]
[1732122921829,0.3009482,3075.3,3074.9,0.761]
[1732122922026,0.48151712,3075.7,3074.9,0.761]
[1732122922256,0.30107535,3075.6,3074.9,0.761]
[1732122922471,0.30107535,3075.5,3074.9,0.3761]
[1732122922676,0.48151712,3075.9,3075.1,3.0]
[1732122922831,0.26820995,3076.5,3075.1,0.8315]
[1732122923037,0.81507007,3076.4,3075.3,3.0]
[1732122923234,0.7825786,3076.3,3075.1,0.7794]
[1732122923462,0.30106148,3076.2,3075.3,0.7794]
[1732122923668,0.30114523,3076.1,3075.3,0.7794]
[1732122923977,0.30114523,3076.0,3075.3,0.7794]
[1732122924183,0.48183236,3076.7,3075.3,0.7794]
[1732122924332,0.78306963,3076.6,3075.4,0.7526]
[1732122924531,0.78306963,3076.5,3075.4,3.0]
[1732122924841,0.78306963,3076.4,3075.7,0.802]
[1732122925049,0.78306963,3076.3,3075.7,0.802]
[1732122925370,0.04249147,3076.8,3075.7,0.802]
[1732122925371,0.78306963,3076.2,3075.7,0.802]
[1732122925583,0.30123727,3076.1,3075.7,0.802]
[1732122925736,0.30123727,3076.0,3075.7,0.802]
[1732122925935,0.48183236,3076.5,3075.7,0.802]
[1732122926276,0.30140814,3076.4,3075.8,0.80950874]
[1732122926445,2.01157465,3077.3,3075.8,0.80950874]
[1732122926446,0.48183236,3076.7,3076.1,0.777]
[1732122926646,0.4548446,3077.2,3076.1,0.777]
[1732122926647,0.3014125,3076.6,3076.1,0.777]
[1732122926877,0.30143884,3076.5,3076.1,0.777]
[1732122927081,0.24989107,3077.1,3076.1,0.777]
[1732122927082,0.48230215,3076.9,3076.1,0.777]
[1732122927397,0.78369741,3076.8,3076.1,0.777]
[1732122927582,0.78369741,3076.7,3076.1,0.777]
[1732122927746,0.30139526,3076.6,3076.1,0.777]
[1732122928083,0.48230215,3076.9,3076.1,0.777]
[1732122928244,0.48230215,3076.9,3076.6,0.7893]
[1732122928448,0.30167605,3076.8,3076.6,0.82180001]
[1732122928684,0.48230215,3077.5,3076.6,0.7893]
[1732122928685,0.48230215,3077.4,3076.6,0.7893]
[1732122928889,0.78388861,3077.3,3076.6,0.7893]
[1732122929089,0.03249147,3077.8,3076.6,0.7893]
[1732122929090,0.30158646,3077.2,3076.6,0.7893]
[1732122929257,0.30158646,3077.1,3076.6,0.7893]
[1732122929459,0.30158646,3077.0,3076.6,0.7893]
[1732122929674,0.30158646,3076.9,3076.6,0.7893]
[1732122929846,0.03249147,3077.4,3076.6,0.7893]
[1732122930051,0.20440661,3077.6,3076.6,0.7893]
[1732122930243,0.30158832,3077.3,3076.6,0.7893]
[1732122930594,0.30158832,3077.2,3076.6,0.7893]
[1732122930888,0.30158832,3077.1,3076.6,0.7893]
[1732122931118,0.48254132,3077.4,3076.7,0.03249722]
[1732122931306,0.48254132,3077.9,3077.0,3.0]
[1732122931447,0.30145123,3077.8,3077.2,0.7631]
[1732122931647,2.01157465,3078.7,3077.1,0.03249073]
[1732122931648,0.48254132,3078.2,3077.4,3.0]
[1732122931843,0.30145737,3078.1,3077.5,0.7631]
[1732122932095,3.55035737,3078.0,3076.3,0.7631]
[1732122932303,0.71913031,3077.9,3076.3,0.7631]
[1732122932591,0.30145737,3077.8,3076.3,0.7631]
[1732122932791,3.24971,3077.2,3076.3,0.7631]
[1732122932995,0.33394884,3077.1,3076.3,0.7631]
[1732122933206,0.30119954,3077.1,3076.3,0.7631]
[1732122933406,0.30119954,3077.0,3076.3,0.7631]
[1732122933549,0.30119954,3076.9,3076.3,0.7631]
[1732122933750,0.30119954,3076.8,3076.3,0.7631]
[1732122933949,0.30119954,3076.7,3076.3,0.7631]
[1732122934252,0.30142382,3076.6,3076.3,0.7631]
[1732122934559,0.03249147,3077.3,3076.3,0.7631]
[1732122934560,0.30142382,3076.5,3076.3,0.7631]
[1732122934765,0.30142382,3076.4,3075.0,0.816]
[1732122934954,0.30142382,3076.4,3075.0,0.8485105]
[1732122934955,0.30142382,3076.3,3075.0,0.8485105]
[1732122935153,0.30142382,3076.2,3075.0,0.8485105]
[1732122935367,0.30142382,3076.1,3075.0,0.8485105]
[1732122935592,0.27722747,3076.8,3075.3,0.01]
[1732122935794,0.30155755,3076.7,3075.6,0.7506]
[1732122935966,0.30157486,3076.9,3076.0,0.7506]
[1732122936199,0.03249147,3077.8,3076.2,0.7506]
[1732122936402,0.03249147,3077.8,3074.9,0.3242]
[1732122936403,0.30154499,3077.7,3076.6,0.7506]
[1732122936744,0.30154499,3077.6,3076.8,0.8031]
[1732122936904,0.03249147,3078.1,3076.8,0.8031]
[1732122937090,0.30164944,3078.0,3076.8,0.8031]
[1732122937293,0.33414091,3077.9,3076.8,0.8031]
[1732122937611,0.30164944,3077.8,3076.8,0.8031]
[1732122937793,0.33414091,3077.7,3076.8,0.8031]
[1732122937988,0.30164944,3077.6,3076.8,0.8031]
[1732122938206,0.33414091,3077.5,3076.8,0.8031]
[1732122938437,0.30164944,3077.4,3076.8,0.8031]
[1732122938587,0.30164944,3077.3,3076.8,0.8031]
[1732122938794,0.30163492,3077.2,3076.8,0.8031]
[1732122939113,0.04249147,3077.9,3076.8,0.8031]
[1732122939306,0.30164092,3077.8,3076.8,0.8031]
[1732122939614,0.33413239,3077.7,3076.8,0.8031]
[1732122940014,0.03249147,3077.7,3076.8,0.8031]
[1732122940190,0.30159948,3077.6,3076.8,0.8031]
[1732122940386,3.24916,3077.8,3076.8,0.8031]
[1732122940387,0.33409095,3077.5,3076.8,0.8031]
[1732122940629,0.30159948,3077.4,3076.8,0.8031]
[1732122940812,0.33409095,3077.3,3076.8,0.8031]
[1732122941106,0.33409095,3077.3,3075.7,0.04249999]
[1732122941107,0.30159948,3077.2,3075.7,0.03249999]
[1732122941310,0.33409095,3077.1,3076.3,0.7503]
[1732122941646,0.30159948,3077.0,3075.0,0.7503]
[1732122941846,0.01,3077.3,3075.2,0.7847]
[1732122941847,0.33409095,3076.9,3075.2,0.7847]
[1732122941990,0.33409095,3076.8,3075.4,0.7847]
[1732122942194,2.85065004,3077.5,3075.6,0.7847]
[1732122942195,0.30159948,3076.7,3075.6,0.7847]
[1732122942395,0.30178873,3077.0,3075.8,0.7847]
[1732122942635,0.829,3077.5,3076.0,0.7847]
[1732122942818,0.30177986,3076.9,3076.1,0.81720032]
[1732122943019,0.86149147,3077.5,3076.1,0.81720032]
[1732122943223,0.30166524,3077.4,3076.1,0.81720032]
[1732122943424,0.30166524,3077.3,3076.1,0.81720032]
[1732122943593,0.30166524,3077.2,3076.1,0.81720032]
[1732122943932,0.33415671,3077.1,3076.1,0.7847]
[1732122944258,0.829,3077.5,3076.1,0.7847]
[1732122944259,0.30166524,3077.0,3076.1,0.7847]
[1732122944392,0.03249147,3077.4,3076.1,0.7847]
[1732122944393,0.30166524,3076.9,3076.1,0.7847]
[1732122944595,0.64248447,3077.4,3076.4,3.0]
[1732122944796,0.30173653,3077.3,3076.4,3.0]
[1732122945046,0.334228,3077.2,3076.4,3.0]
[1732122945334,0.30173653,3077.1,3076.1,0.7847]
[1732122945521,0.30173653,3077.0,3076.4,3.0]
[1732122945742,0.30173653,3076.9,3076.4,3.0]
[1732122946037,0.30176643,3076.9,3076.4,3.0]
[1732122946198,0.30176643,3076.8,3076.1,0.7847]
[1732122946401,3.859513,3077.4,3076.1,0.7847]
[1732122946625,0.30188881,3077.3,3076.4,3.0]
[1732122946815,0.30188881,3077.2,3076.1,0.7847]
[1732122947010,0.30188881,3077.1,3076.4,3.0]
[1732122947297,0.66029784,3077.0,3076.1,0.7847]
[1732122947531,0.30188881,3076.9,3076.4,3.0]
[1732122947717,0.30188881,3076.8,3076.1,0.7847]
[1732122947929,0.35840903,3077.0,3076.4,3.0]
[1732122948131,0.30210826,3076.9,3075.7,0.55]
[1732122948312,2.02165004,3078.1,3076.3,0.3242]
[1732122948664,2.02165004,3078.1,3076.5,0.8742]
[1732122948665,0.83101264,3078.1,3076.5,0.8742]
[1732122948801,0.28526627,3078.0,3076.6,0.0324941]
[1732122949436,3.24909,3077.8,3076.2,0.03249442]
[1732122949755,2.69613087,3078.0,3076.2,0.04249442]
[1732122949954,0.26961309,3078.2,3076.6,0.3242]
[1732122950132,0.26961309,3078.2,3077.0,3.0]
[1732122950299,0.26961309,3078.2,3077.0,3.3]
[1732122950500,3.24894,3078.0,3077.0,3.0]
[1732122950748,0.03249147,3077.9,3077.0,3.0]
[1732122950950,0.03249147,3077.9,3076.4,0.03249105]
[1732122951114,6.21444396,3078.2,3076.4,0.03249105]
[1732122951115,0.03249147,3078.1,3077.0,3.0]
[1732122951314,0.65493587,3078.1,3077.0,3.0]
[1732122951519,0.65493587,3078.1,3076.4,0.03249105]
[1732122951714,3.90376587,3078.1,3076.4,0.03249105]
[1732122952033,0.7422079,3078.0,3076.4,0.03249105]
[1732122952240,0.82709147,3077.9,3077.0,3.0]
[1732122952416,4.07616147,3077.9,3076.5,0.7669]
[1732122952858,4.07616147,3077.9,3077.0,3.0]
[1732122953012,3.98164815,3077.8,3076.5,0.7669]
[1732122953204,0.03249147,3077.7,3076.5,0.7669]
[1732122954547,0.03249147,3077.7,3076.7,3.0]
[1732122955468,0.73250815,3077.8,3076.7,3.0]
[1732122955469,3.42863902,3077.8,3076.7,3.0]
[1732122955604,3.42863902,3077.8,3076.5,0.79939857]
[1732122955605,0.4223239,3077.7,3076.5,0.79939857]
[1732122956033,0.4223239,3077.7,3076.7,3.0]
[1732122956034,0.45481537,3077.7,3076.7,3.0]
[1732122956258,0.03249147,3077.7,3076.7,3.0]
[1732122956455,0.03249147,3077.7,3076.5,0.7669]
[1732122956607,3.28167147,3077.7,3076.7,3.0]
[1732122956807,3.24931,3077.6,3076.7,3.0]
[1732122957010,0.36067162,3077.5,3076.7,3.0]
[1732122957242,0.03249147,3077.5,3076.7,3.0]
[1732122957456,0.03249147,3077.5,3076.5,0.7669]
[1732122957757,0.03249147,3077.5,3076.7,3.0]
[1732122957909,0.7946,3077.4,3076.7,3.0]
[1732122958110,3.49073087,3077.7,3076.7,0.03249918]
[1732122958314,4.06138148,3078.1,3076.7,0.03249918]
[1732122958315,2.69613087,3077.9,3076.7,0.03249918]
[1732122958518,4.23739933,3078.0,3076.3,1.1564]
[1732122958708,0.7833,3078.0,3077.0,3.0]
[1732122959260,0.03249147,3077.9,3076.5,0.8322]
[1732122959434,0.3836837,3077.9,3076.5,0.8322]
[1732122959809,0.35119223,3077.9,3077.1,0.8069]
[1732122960039,0.7833,3078.0,3077.2,0.03249247]
[1732122960209,0.7833,3078.0,3077.3,3.0]
[1732122960432,0.30299924,3077.9,3077.3,3.0]
[1732122960612,0.33549071,3077.8,3077.3,3.0]
[1732122960934,0.30299924,3077.7,3077.3,3.0]
[1732122961142,0.30299924,3077.6,3077.3,3.0]
[1732122961335,0.30299924,3077.5,3077.3,3.0]
[1732122961507,0.30299924,3077.5,3076.8,0.7795]
[1732122961708,0.30299924,3077.4,3077.3,3.0]
[1732122962361,0.7833,3078.0,3076.9,0.03249553]
[1732122962566,0.33544386,3077.9,3076.8,0.7795]
[1732122962734,0.30295239,3077.8,3076.8,0.7795]
[1732122962937,1.28840933,3077.7,3076.8,0.7795]
[1732122963126,0.30295239,3077.6,3076.8,0.7795]
[1732122963325,0.30295239,3077.5,3076.8,0.7795]
[1732122963527,0.30295239,3077.4,3076.8,0.7795]
[1732122963753,0.30295239,3077.3,3076.8,0.7795]
[1732122964064,3.3812306,3077.9,3076.8,0.7795]
[1732122964065,2.69613087,3077.9,3076.8,0.7795]
[1732122964269,0.30299058,3077.8,3076.9,0.03249323]
[1732122964566,0.30299513,3077.8,3077.2,3.0]
[1732122964789,0.30299513,3077.7,3077.2,3.3]
[1732122964932,2.69613087,3078.2,3077.4,3.0]
[1732122965125,0.30295983,3078.1,3077.5,0.03248891]
[1732122965378,0.30295983,3078.0,3077.5,0.03248891]
[1732122965668,0.30295983,3077.9,3077.4,3.0]
[1732122965876,0.30295983,3077.8,3077.5,0.41474874]
[1732122966036,4.74916544,3079.0,3077.5,0.03248874]
[1732122966037,3.48253087,3078.6,3077.5,0.03248874]
[1732122966240,0.30303397,3078.5,3077.5,0.03248874]
[1732122966568,3.48253087,3078.6,3078.0,0.7627]
[1732122966569,0.30303397,3078.4,3078.0,0.7627]
[1732122966767,0.30303397,3078.3,3078.0,0.7627]
[1732122966968,2.69613087,3078.7,3078.0,0.7627]
[1732122967140,0.57245635,3078.6,3078.0,0.7627]
[1732122967345,0.30284326,3078.5,3078.0,0.7627]
[1732122967543,0.30284326,3078.4,3078.0,0.7627]
[1732122967882,2.69613087,3078.7,3078.0,3.7627]
[1732122968042,0.30265638,3078.6,3078.0,0.7627]
[1732122968244,0.30265638,3078.5,3078.1,0.03248271]
[1732122968442,0.69001405,3078.8,3078.0,0.7627]
[1732122968628,0.30247604,3078.7,3078.0,0.7627]
[1732122968954,2.69613087,3079.0,3078.0,0.7627]
[1732122969154,0.3024668,3078.9,3078.0,0.7627]
[1732122969353,0.3024668,3078.8,3078.0,0.7627]
[1732122969568,0.03249147,3079.1,3078.0,0.7627]
[1732122969872,0.30225927,3079.0,3078.3,3.0]
[1732122970085,0.33475074,3078.9,3078.0,0.7627]
[1732122970290,0.8059,3078.7,3077.1,0.7757]
[1732122970584,0.8059,3078.7,3077.0,0.56]
[1732122970585,0.33475074,3078.6,3077.3,0.7757]
[1732122970800,0.30225927,3078.5,3077.4,0.03248446]
[1732122971007,0.8059,3078.1,3077.3,0.7757]
[1732122971326,0.70767169,3078.0,3077.3,0.7757]
[1732122971489,0.30221569,3078.0,3077.3,0.7757]
[1732122971648,0.30221569,3077.9,3077.3,0.7757]
[1732122971847,0.30221569,3077.8,3077.3,0.7757]
[1732122972043,0.30221569,3077.7,3077.3,0.7757]
[1732122972283,0.4199241,3078.0,3077.3,0.7757]
[1732122972469,0.30236303,3077.9,3077.3,0.7757]
[1732122972644,0.30236303,3077.8,3077.3,0.7757]
[1732122972987,4.18924097,3078.1,3077.3,0.7757]
[1732122972988,0.8059,3078.1,3077.3,0.7757]
[1732122973185,0.33484018,3078.0,3077.3,0.7757]
[1732122973398,0.30234871,3077.9,3077.3,0.7757]
[1732122973546,0.33484018,3077.8,3077.1,3.0]
[1732122973885,0.8185,3077.6,3076.1,0.7709]
[1732122974100,0.85099147,3077.6,3076.2,0.032498]
[1732122974287,0.85099147,3077.6,3076.3,0.7709]
[1732122974288,0.8185,3077.6,3076.3,0.7709]
[1732122974586,0.30241796,3077.5,3076.3,0.7709]
[1732122974789,0.33490943,3077.5,3076.3,0.7709]
[1732122975102,4.06785,3077.6,3076.3,0.7709]
[1732122975103,0.30241796,3077.4,3076.3,0.7709]
[1732122975397,0.33490943,3077.3,3076.3,0.7709]
[1732122975747,0.30241796,3077.2,3076.3,0.7709]
[1732122976072,0.30241796,3077.1,3076.3,0.7709]
[1732122976271,0.30241796,3077.0,3076.3,0.7709]
[1732122976474,1.09810696,3076.9,3076.3,0.7709]
[1732122976697,0.3351126,3076.8,3075.4,0.7919]
[1732122976847,0.3351126,3076.8,3075.5,0.03250739]
[1732122976848,0.30262113,3076.7,3075.5,0.03250739]
[1732122977047,0.30262113,3076.6,3075.5,0.03250739]
[1732122977269,3.38334097,3076.8,3075.5,0.03250739]
[1732122977479,0.30270791,3076.7,3075.5,0.03250739]
[1732122977711,0.7955,3076.9,3075.6,0.753]
[1732122977906,0.7955,3076.9,3075.1,0.01]
[1732122977907,0.30254808,3076.6,3075.8,0.77]
[1732122978221,0.7955,3076.9,3075.9,0.03250266]
[1732122978372,3.38334097,3077.1,3075.9,0.03250266]
[1732122978575,4.19494097,3077.2,3076.3,0.8154]
[1732122978799,4.19494097,3077.2,3076.4,0.38154]
[1732122979030,0.01,3077.6,3076.7,3.0]
[1732122979031,4.14854097,3077.6,3076.7,3.0]
[1732122979211,0.7652,3077.6,3076.8,0.8154]
[1732122979717,0.7652,3077.6,3076.9,3.0]
[1732122979919,0.30244097,3077.5,3077.0,0.38154]
[1732122980122,0.7652,3077.6,3077.0,0.38154]
[1732122980294,0.30243652,3077.5,3077.0,0.38154]
[1732122980472,0.7652,3077.6,3077.0,0.38154]
[1732122980676,0.7652,3077.6,3076.9,3.0]
[1732122980911,0.33493128,3077.5,3076.8,0.8154]
[1732122981113,0.7652,3077.6,3076.8,0.8154]
[1732122981422,0.30244731,3077.5,3076.8,0.8154]
[1732122981607,0.7652,3077.6,3076.8,0.8154]
[1732122981797,0.3024381,3077.5,3076.9,3.0]
[1732122981995,0.3024381,3077.5,3076.9,3.38154]
[1732122982190,3.38334097,3077.7,3076.9,0.38154]
[1732122982395,0.30243319,3077.6,3076.9,3.0]
[1732122982601,3.38334097,3077.8,3076.8,0.8154]
[1732122982904,0.30243258,3077.7,3076.8,0.8154]
[1732122983123,0.30243258,3077.6,3076.9,3.0]
[1732122983282,0.30243258,3077.7,3077.0,0.38154]
[1732122983483,0.30243086,3077.6,3077.0,0.38154]
[1732122983689,4.15962247,3077.9,3076.9,3.0]
[1732122983993,4.15962247,3077.9,3077.0,0.38154]
[1732122983994,3.72213465,3077.8,3077.0,0.38154]
[1732122984199,0.30242071,3077.7,3076.9,3.0]
[1732122984414,3.41971394,3077.6,3076.3,0.7899]
[1732122984591,4.86225664,3077.5,3076.6,3.0]
[1732122984783,0.30242071,3077.4,3076.7,3.0]
[1732122984983,0.8004,3077.5,3076.8,0.03249753]
[1732122985183,0.8004,3077.5,3076.8,0.3]
[1732122985425,0.8004,3077.5,3076.4,0.03249753]
[1732122985634,0.30244456,3077.4,3076.7,3.0]
[1732122985788,0.8004,3077.5,3076.4,0.03249753]
[1732122986124,0.30247648,3077.4,3076.4,0.03249753]
[1732122986339,0.8004,3077.5,3076.4,0.03249753]
[1732122986623,0.01,3077.9,3076.4,0.03249753]
[1732122986624,4.15542247,3077.9,3076.9,3.0]
[1732122986836,0.30245326,3077.8,3077.0,0.3]
[1732122987128,0.7682,3077.9,3077.0,0.3]
[1732122987285,0.3024616,3077.8,3076.9,3.0]
[1732122987486,0.7682,3077.9,3077.1,0.7642]
[1732122987687,3.38700911,3078.1,3077.2,0.37966932]
[1732122987982,0.7844,3078.2,3077.3,3.03249091]
[1732122988187,0.7844,3078.2,3077.4,0.34121602]
[1732122988188,0.30243032,3078.1,3077.4,0.34121602]
[1732122988432,0.7844,3078.2,3077.4,0.34121602]
[1732122988637,0.30242582,3078.1,3077.4,0.34121602]
[1732122988964,0.7844,3078.2,3077.3,3.0]
[1732122989135,0.30243183,3078.1,3077.3,3.0]
[1732122989423,0.7844,3078.2,3077.3,3.37642]
[1732122989599,0.30241558,3078.1,3077.3,0.37642]
[1732122989921,0.7844,3078.2,3077.3,3.0]
[1732122990085,0.7844,3078.2,3077.4,0.03249072]
[1732122990299,0.30241475,3078.1,3077.4,3.03249072]
[1732122990500,4.17140911,3078.5,3077.5,0.30324907]
[1732122990733,0.30241435,3078.4,3077.6,0.03248776]
[1732122990953,3.38700911,3078.6,3077.6,0.03248776]
[1732122991100,3.38700911,3078.7,3078.0,0.8237]
[1732122991302,3.38700911,3079.0,3078.1,3.03248227]
[1732122991541,0.30229185,3078.9,3078.3,3.0]
[1732122991856,0.30227091,3078.8,3078.3,3.0]
[1732122992356,0.30217371,3079.0,3078.3,3.0]
[1732122992651,0.30217219,3078.9,3078.3,3.0]
[1732122992939,0.30217219,3078.8,3078.0,0.8237]
[1732122993139,1.13137219,3078.7,3077.5,0.55]
[1732122993436,0.8292,3078.7,3078.0,3.0]
[1732122993645,0.8292,3078.7,3077.6,0.032484]
[1732122993646,0.30216658,3078.6,3077.6,0.032484]
[1732122993846,0.30216658,3078.6,3078.0,3.0]
[1732122994135,0.8292,3078.7,3078.0,3.8237]